fUSD/lending_fUSD_20250513
["ID","MTS","AMOUNT","RATE_DAILY","PERIOD"]
[360934707,1747156243860,-2925.19,0.00010958,2]
[360934708,1747156243869,-729.45,0.00010958,2]
[360934709,1747156243879,-994.34,0.00010958,2]
[360934710,1747156243888,-1367.25,0.00010958,2]
[360934711,1747156243897,-400.0,0.00010958,2]
[360934712,1747156243907,-436.64,0.00010958,2]
[360934713,1747156243915,-5225.57,0.00010958,2]
[360934714,1747156243924,-701.57,0.00010958,2]
[360934715,1747156243933,-2151.42,0.00010958,2]
[360934716,1747156243943,-400.0,0.00010958,2]
[360934717,1747156243952,-509.78,0.00010958,2]
[360934718,1747156243961,-471.1,0.00010958,2]
[360934719,1747156243971,-400.0,0.00010958,2]
[360934720,1747156243981,-614.93,0.00010958,2]
[360934721,1747156243991,-400.0,0.00010958,2]
[360934722,1747156244002,-559.19,0.00010958,2]
[360934723,1747156244011,-4868.18,0.00010958,2]
[360934724,1747156244021,-2124.23,0.00010958,2]
[360934725,1747156244031,-10151.94,0.00010958,2]
[360934726,1747156244040,-833.61,0.00010958,2]
[360934727,1747156244049,-834.73,0.00010958,2]
[360934728,1747156244061,-400.0,0.00010958,2]
[360934729,1747156244070,-400.0,0.00010958,2]
[360934730,1747156244080,-595.06,0.00010958,2]
[360934731,1747156244089,-1921.79,0.00010958,2]
[360934732,1747156244099,-400.0,0.00010958,2]
[360934733,1747156244108,-504.06,0.00010958,2]
[360934734,1747156244117,-644.05,0.00010958,2]
[360934735,1747156244126,-400.0,0.00010958,2]
[360934736,1747156244137,-400.0,0.00010958,2]
[360934738,1747156244147,-400.0,0.00010958,2]
[360934740,1747156244156,-400.0,0.00010958,2]
[360934742,1747156244166,-400.0,0.00010958,2]
[360934743,1747156244175,-400.0,0.00010958,2]
[360934744,1747156244184,-1374.26,0.00010958,2]
[360934745,1747156244193,-802.18,0.00010958,2]
[360934746,1747156244203,-602.44,0.00010958,2]
[360934747,1747156244212,-400.0,0.00010958,2]
[360934748,1747156244221,-1327.25,0.00010958,2]
[360934749,1747156244231,-3293.75,0.00010958,2]
[360934750,1747156244241,-604.73,0.00010958,2]
[360934751,1747156244251,-748.32,0.00010958,2]
[360934752,1747156244261,-400.0,0.00010958,2]
[360934753,1747156244271,-976.66,0.00010958,2]
[360934754,1747156244280,-10702.2,0.00010958,2]
[360934755,1747156244289,-400.0,0.00010958,2]
[360934756,1747156244299,-400.0,0.00010958,2]
[360934757,1747156244308,-400.0,0.00010958,2]
[360934758,1747156244317,-599.59,0.00010958,2]
[360934759,1747156244326,-3540.82,0.00010958,2]
[360934760,1747156244336,-2235.1,0.00010958,2]
[360934761,1747156244345,-1196.71,0.00010958,2]
[360934762,1747156244354,-400.0,0.00010958,2]
[360934763,1747156244363,-586.5,0.00010958,2]
[360934764,1747156244372,-400.0,0.00010958,2]
[360934765,1747156244382,-400.0,0.00010958,2]
[360934766,1747156244392,-192.42947967,0.00010958,2]
[360934767,1747156244401,-953.68,0.00010958,2]
[360934768,1747156244411,-1865.46,0.00010958,2]
[360934769,1747156244423,-400.0,0.00010958,2]
[360934770,1747156244432,-444.85,0.00010958,2]
[360934771,1747156244442,-1081.38,0.00010958,2]
[360934772,1747156244451,-402.12903368,0.00010958,2]
[360934773,1747156244461,-400.0,0.00010958,2]
[360934774,1747156244471,-400.0,0.00010958,2]
[360934775,1747156244480,-1239.15,0.00010958,2]
[360934776,1747156244490,-400.0,0.00010958,2]
[360934777,1747156244499,-2793.22,0.00010958,2]
[360934778,1747156244509,-400.0,0.00010958,2]
[360934779,1747156244521,-595.35,0.00010958,2]
[360934780,1747156244531,-400.0,0.00010958,2]
[360934781,1747156244540,-400.0,0.00010958,2]
[360934782,1747156244549,-400.0,0.00010958,2]
[360934783,1747156244559,-671.91,0.00010958,2]
[360934784,1747156244569,-547.25,0.00010958,2]
[360934785,1747156244579,-4346.11,0.00010958,2]
[360934786,1747156244589,-1255.33,0.00010958,2]
[360934787,1747156244599,-409.42,0.00010958,2]
[360934788,1747156244609,-546.46,0.00010958,2]
[360934789,1747156244619,-400.0,0.00010958,2]
[360934790,1747156244628,-1004.59,0.00010958,2]
[360934791,1747156244637,-2135.2,0.00010958,2]
[360934792,1747156244646,-628.15,0.00010958,2]
[360934793,1747156244656,-1346.7,0.00010958,2]
[360934794,1747156244665,-786.38,0.00010958,2]
[360934795,1747156244674,-400.0,0.00010958,2]
[360934796,1747156244684,-1033.11,0.00010958,2]
[360934797,1747156244693,-515.12,0.00010958,2]
[360934798,1747156244702,-400.0,0.00010958,2]
[360934799,1747156244712,-400.0,0.00010958,2]
[360934800,1747156244721,-400.0,0.00010958,2]
[360934801,1747156244730,-400.0,0.00010958,2]
[360934802,1747156244739,-1133.52,0.00010958,2]
[360934803,1747156244749,-778.75,0.00010958,2]
[360934804,1747156244759,-508.43,0.00010958,2]
[360934805,1747156244768,-400.0,0.00010958,2]
[360934806,1747156244778,-400.0,0.00010958,2]
[360934807,1747156244788,-400.0,0.00010958,2]
[360934808,1747156244798,-400.0,0.00010958,2]
[360934809,1747156244808,-879.89,0.00010958,2]
[360934810,1747156244817,-400.0,0.00010958,2]
[360934811,1747156244826,-471.81410008,0.00010958,2]
[360934812,1747156244835,-437.19,0.00010958,2]
[360934813,1747156244844,-587.09,0.00010958,2]
[360934814,1747156244854,-400.0,0.00010958,2]
[360934815,1747156244863,-400.0,0.00010958,2]
[360934816,1747156244873,-400.0,0.00010958,2]
[360934817,1747156244882,-400.0,0.00010958,2]
[360934818,1747156244891,-1728.97,0.00010958,2]
[360934819,1747156244901,-467.47,0.00010958,2]
[360934820,1747156244910,-487.98,0.00010958,2]
[360934821,1747156244919,-400.0,0.00010958,2]
[360934822,1747156244928,-724.65,0.00010958,2]
[360934823,1747156244938,-400.0,0.00010958,2]
[360934824,1747156244947,-400.0,0.00010958,2]
[360934825,1747156244956,-400.0,0.00010958,2]
[360934826,1747156244965,-477.64618415,0.00010958,2]
[360934827,1747156244975,-405.13,0.00010958,2]
[360934828,1747156244985,-400.0,0.00010958,2]
[360934829,1747156244994,-400.0,0.00010958,2]
[360934830,1747156245004,-400.0,0.00010958,2]
[360934831,1747156245014,-400.0,0.00010958,2]
[360934832,1747156245023,-400.0,0.00010958,2]
[360934833,1747156245033,-1973.13,0.00010958,2]
[360934834,1747156245042,-2020.68,0.00010958,2]
[360934835,1747156245053,-1495.01,0.00010958,2]
[360934836,1747156245063,-1106.58,0.00010958,2]
[360934837,1747156245073,-1738.97,0.00010958,2]
[360934838,1747156245082,-400.0,0.00010958,2]
[360934839,1747156245094,-400.0,0.00010958,2]
[360934840,1747156245104,-400.0,0.00010958,2]
[360934841,1747156245113,-686.06,0.00010958,2]
[360934842,1747156245122,-400.0,0.00010958,2]
[360934843,1747156245134,-400.0,0.00010958,2]
[360934844,1747156245144,-400.0,0.00010958,2]
[360934845,1747156245153,-933.31,0.00010958,2]
[360934846,1747156245163,-565.33,0.00010958,2]
[360934847,1747156245172,-400.0,0.00010958,2]
[360934848,1747156245181,-400.0,0.00010958,2]
[360934849,1747156245191,-400.0,0.00010958,2]
[360934850,1747156245200,-400.0,0.00010958,2]
[360934851,1747156245210,-400.0,0.00010958,2]
[360934852,1747156245220,-400.0,0.00010958,2]
[360934853,1747156245229,-400.0,0.00010958,2]
[360934854,1747156245238,-569.55,0.00010958,2]
[360934855,1747156245248,-483.53,0.00010958,2]
[360934856,1747156245258,-2264.96,0.00010958,2]
[360934857,1747156245268,-809.14,0.00010958,2]
[360934858,1747156245277,-1387.03,0.00010958,2]
[360934859,1747156245286,-567.05,0.00010958,2]
[360934860,1747156245296,-1087.57,0.00010958,2]
[360934861,1747156245305,-736.93,0.00010958,2]
[360934862,1747156245314,-460.12,0.00010958,2]
[360934863,1747156245324,-1277.12,0.00010958,2]
[360934864,1747156245333,-546.41,0.00010958,2]
[360934865,1747156245342,-407.59,0.00010958,2]
[360934866,1747156245351,-1585.22,0.00010958,2]
[360934867,1747156245361,-400.0,0.00010958,2]
[360934868,1747156245370,-497.62,0.00010958,2]
[360934869,1747156245379,-1323.75,0.00010958,2]
[360934870,1747156245388,-2557.8,0.00010958,2]
[360934871,1747156245398,-400.0,0.00010958,2]
[360934872,1747156245408,-1813.79,0.00010958,2]
[360934873,1747156245417,-400.0,0.00010958,2]
[360934874,1747156245427,-400.0,0.00010958,2]
[360934875,1747156245438,-1537.25,0.00010958,2]
[360934876,1747156245447,-535.51,0.00010958,2]
[360934877,1747156245457,-400.0,0.00010958,2]
[360934878,1747156245467,-500.0,0.00010959,2]
[360934879,1747156245477,-500.0,0.00010959,2]
[360934880,1747156245487,-500.0,0.00010959,2]
[360934881,1747156245496,-500.0,0.00010959,2]
[360934882,1747156245509,-500.0,0.00010959,2]
[360934883,1747156245519,-500.0,0.00010959,2]
[360934884,1747156245529,-500.0,0.00010959,2]
[360934885,1747156245539,-500.0,0.00010959,2]
[360934886,1747156245548,-500.0,0.00010959,2]
[360934887,1747156245558,-500.0,0.00010959,2]
[360934888,1747156245568,-500.0,0.00010959,2]
[360934889,1747156245578,-500.0,0.00010959,2]
[360934890,1747156245588,-500.0,0.00010959,2]
[360934891,1747156245597,-500.0,0.00010959,2]
[360934892,1747156245607,-500.0,0.00010959,2]
[360934893,1747156245618,-500.0,0.00010959,2]
[360934894,1747156245627,-500.0,0.00010959,2]
[360934895,1747156245637,-500.0,0.00010959,2]
[360934896,1747156245646,-200.63,0.00010959,2]
[360934897,1747156245656,-150.0,0.00010959,2]
[360934898,1747156245665,-500.0,0.00010959,2]
[360934899,1747156245675,-500.0,0.00010959,2]
[360934900,1747156245684,-500.0,0.00010959,2]
[360934901,1747156245694,-347.35124825,0.00010959,2]
[360934902,1747156245703,-500.0,0.00010959,2]
[360934903,1747156245713,-167.54848346,0.00010973,2]
[360934904,1747156245723,-167.8533398,0.00010973,2]
[360934905,1747156245732,-500.0,0.00010973,2]
[360934906,1747156245742,-500.69101784,0.00010973,2]
[360934907,1747156245755,-500.0,0.00010973,2]
[360934908,1747156245765,-166.30409871,0.00010973,2]
[360934909,1747156245774,-500.0,0.00010973,2]
[360934910,1747156245783,-500.0,0.00010973,2]
[360934911,1747156245793,-500.0,0.00010973,2]
[360934912,1747156245803,-500.0,0.00010973,2]
[360934913,1747156245812,-502.53967774,0.00010973,2]
[360934914,1747156245822,-500.0,0.00010973,2]
[360934915,1747156245832,-500.0,0.00010973,2]
[360934916,1747156245842,-500.0,0.00010973,2]
[360934917,1747156245851,-360.34395935,0.00010973,2]
[360934919,1747156245861,-500.0,0.00010973,2]
[360934920,1747156245870,-550.14715315,0.00010973,2]
[360934921,1747156245880,-612.64823099,0.00010973,2]
[360934922,1747156245889,-500.0,0.00010973,2]
[360934923,1747156245899,-187.123,0.0001099,2]
[360934924,1747156245909,-3820.999,0.0001099,2]
[360934925,1747156245918,-637.0,0.00010998,2]
[360934926,1747156245930,-30160.3473319,0.00010998,2]
[360934927,1747156245939,-23382.1328289,0.00010998,2]
[360934928,1747156245949,-3870.4342222,0.00010998,2]
[360934929,1747156245959,-406348.6741489,0.00010998,2]
[360934930,1747156245968,-1680.0,0.00010999,2]
[360934931,1747156245978,-300.0,0.00010999,2]
[360934932,1747156245989,-300.0,0.00010999,2]
[360934934,1747156245999,-300.0,0.00010999,2]
[360934935,1747156246012,-300.6020939,0.00011,2]
[360934936,1747156246022,-252831.59394702,0.00011,2]
[360934937,1747156246033,-1000.0,0.00011,2]
[360934938,1747156246042,-4184495.52259422,0.00011,2]
[360934939,1747156246084,-10234.30039707,0.00011,2]
[360934940,1747156246096,-11728.87028979,0.00011,2]
[360934941,1747156246119,-19536.12281679,0.00011,2]
[360935002,1747156247086,-9353.43084925,0.00011,2]
[360935005,1747156247099,-1000.0,0.00011,2]
[360935007,1747156247113,-659.48266276,0.00011,2]
[360935009,1747156247123,-258.44000001,0.00011,2]
[360935012,1747156247146,-527.55520127,0.00011,2]
[360935078,1747156247786,-734.51,0.00010958,2]
[360935080,1747156247796,-891.99752116,0.00011,2]
[360935082,1747156247807,-1276.83335247,0.00011,2]
[360935084,1747156247819,-2206.13441551,0.00011,2]
[360935087,1747156247838,-2617.7,0.00011,2]
[360935089,1747156247849,-2177.74616152,0.00011,2]
[360935132,1747156248312,-290.42619056,0.0001011,2]
[360935136,1747156248342,-114.26878186,0.0001011,2]
[360935139,1747156248358,-404.69497242,0.00010164,2]
[360935141,1747156248372,-404.69497242,0.00010192,2]
[360935144,1747156248388,-404.69497242,0.00010219,2]
[360935146,1747156248402,-404.69497242,0.00010274,2]
[360935149,1747156248417,-404.69497242,0.00010301,2]
[360935151,1747156248432,-404.69497242,0.00010356,2]
[360935153,1747156248448,-404.69497242,0.00010384,2]
[360935155,1747156248462,-404.69497242,0.00010438,2]
[360935158,1747156248477,-404.69497242,0.00010466,2]
[360935160,1747156248492,-404.69497242,0.00010521,2]
[360935163,1747156248505,-1146.0,0.000109,2]
[360935165,1747156248518,-5072.78149394,0.00011,2]
[360935169,1747156248549,-5030.65055664,0.00011,2]
[360935189,1747156248745,-5211.4439837,0.00011,2]
[360935192,1747156248775,-500.0,9.964e-05,2]
[360935195,1747156248788,-137.13999091,0.00011,2]
[360935198,1747156248820,-500.0,9.964e-05,2]
[360935201,1747156248832,-259496.95610001,0.00011,2]
[360935327,1747156290521,150.0,0.00022494,120]
[360935328,1747156623795,300.0,0.00028,120]
[360935330,1747156750443,1608.02,8.219e-05,2]
[360935331,1747156785633,250.0,9.318e-05,2]
[360935332,1747156907783,200.0,9.317e-05,2]
[360935333,1747156956030,1000.0,9.308e-05,2]
[360935334,1747156979344,164.79,9.314e-05,2]
[360935336,1747157121144,6044.5371997,9e-05,2]
[360935337,1747157138120,1316.42643881,9e-05,2]
[360935338,1747157148199,150.0,9.888e-05,2]
[360935339,1747157157053,1254.38741807,6.94e-05,2]
[360935340,1747157169382,2841.63081809,8e-05,2]
[360935341,1747157182662,1463.12,9.362e-05,2]
[360935343,1747157238165,996.35,9.325e-05,2]
[360935370,1747157326754,-150.0,9.905e-05,2]
[360935371,1747157326779,-150.0,9.922e-05,2]
[360935372,1747157326802,-150.0,9.939e-05,2]
[360935373,1747157326827,-150.0,9.956e-05,2]
[360935374,1747157326858,-500.0,9.969e-05,2]
[360935375,1747157326889,-500.0,9.969e-05,2]
[360935376,1747157326919,-500.0,9.969e-05,2]
[360935377,1747157326950,-598.91971304,9.969e-05,2]
[360935378,1747157326982,-500.0,9.969e-05,2]
[360935379,1747157327013,-500.0,9.969e-05,2]
[360935380,1747157327042,-500.0,9.969e-05,2]
[360935381,1747157327073,-500.0,9.969e-05,2]
[360935382,1747157327102,-500.0,9.969e-05,2]
[360935383,1747157327131,-500.0,9.969e-05,2]
[360935384,1747157327162,-500.0,9.969e-05,2]
[360935385,1747157327192,-500.0,9.969e-05,2]
[360935386,1747157327223,-500.0,9.969e-05,2]
[360935387,1747157327255,-500.0,9.969e-05,2]
[360935388,1747157327285,-500.0,9.969e-05,2]
[360935389,1747157327317,-500.0,9.969e-05,2]
[360935390,1747157327348,-500.0,9.969e-05,2]
[360935391,1747157327380,-500.0,9.969e-05,2]
[360935392,1747157327411,-500.0,9.969e-05,2]
[360935393,1747157327443,-500.0,9.969e-05,2]
[360935394,1747157327476,-500.0,9.969e-05,2]
[360935395,1747157327508,-500.0,9.969e-05,2]
[360935396,1747157327539,-500.0,9.969e-05,2]
[360935397,1747157327570,-500.0,9.969e-05,2]
[360935398,1747157327599,-500.0,9.969e-05,2]
[360935399,1747157327629,-500.0,9.969e-05,2]
[360935400,1747157327659,-500.0,9.969e-05,2]
[360935401,1747157327690,-500.0,9.969e-05,2]
[360935402,1747157327722,-500.0,9.969e-05,2]
[360935403,1747157327753,-500.0,9.969e-05,2]
[360935404,1747157327784,-442.26083036,9.969e-05,2]
[360935405,1747157327814,-500.0,9.969e-05,2]
[360935406,1747157327843,-500.0,9.969e-05,2]
[360935407,1747157327872,-500.0,9.969e-05,2]
[360935408,1747157327901,-500.0,9.969e-05,2]
[360935409,1747157327930,-500.0,9.969e-05,2]
[360935410,1747157327959,-500.0,9.969e-05,2]
[360935411,1747157327989,-500.0,9.969e-05,2]
[360935412,1747157328020,-500.0,9.969e-05,2]
[360935413,1747157328050,-500.0,9.969e-05,2]
[360935414,1747157328074,-295.71,9.97e-05,2]
[360935415,1747157328098,-250.0,9.971e-05,2]
[360935416,1747157328122,-295.71,9.972e-05,2]
[360935417,1747157328147,-1200.0,9.973e-05,2]
[360935418,1747157328172,-300.0,9.973e-05,2]
[360935419,1747157328196,-150.0,9.974e-05,2]
[360935420,1747157328221,-295.71,9.975e-05,2]
[360935421,1747157328249,-295.71,9.978e-05,2]
[360935422,1747157328275,-295.71,9.98e-05,2]
[360935423,1747157328300,-295.71,9.983e-05,2]
[360935424,1747157328326,-295.71,9.986e-05,2]
[360935425,1747157328351,-295.71,9.988e-05,2]
[360935426,1747157328376,-150.0,9.991e-05,2]
[360935427,1747157328404,-295.71,9.991e-05,2]
[360935428,1747157328429,-23900.0,9.992e-05,2]
[360935429,1747157328454,-295.71,9.993e-05,2]
[360935430,1747157328482,-295.71,9.996e-05,2]
[360935431,1747157328509,-295.71,9.999e-05,2]
[360935432,1747157328534,-700.0,0.0001,3]
[360935433,1747157328559,-22929.72267485,0.0001,2]
[360935434,1747157328585,-1871.04779945,0.0001,2]
[360935435,1747157328673,272.67,9.311e-05,2]
[360935444,1747157392856,75494.6,9.314e-05,2]
[360935456,1747157432286,-300.0,9.968e-05,2]
[360935457,1747157432296,-1200.0,9.968e-05,2]
[360935458,1747157432306,-2687.15843431,9.995e-05,2]
[360935459,1747157432320,-1706.9000001,9.995e-05,2]
[360935460,1747157432332,-704.41414524,9.995e-05,2]
[360935461,1747157432363,-474.31472,9.995e-05,2]
[360935462,1747157432403,-1134.49042965,9.995e-05,2]
[360935463,1747157432414,-167.64238623,0.0001,2]
[360935464,1747157432425,-295.71,0.00010001,2]
[360935465,1747157432435,-295.71,0.00010004,2]
[360935466,1747157432444,-295.71,0.00010007,2]
[360935467,1747157432454,-150.0,0.00010008,2]
[360935468,1747157432463,-295.71,0.00010009,2]
[360935469,1747157432473,-295.71,0.00010012,2]
[360935470,1747157432482,-295.71,0.00010015,2]
[360935471,1747157432491,-6116.84,0.00010017,2]
[360935472,1747157432502,-295.71,0.00010017,2]
[360935473,1747157432511,-295.71,0.0001002,2]
[360935474,1747157432520,-150.0,0.00010025,2]
[360935475,1747157432530,-237.23,0.00010031,2]
[360935476,1747157432540,-150.0,0.00010042,2]
[360935477,1747157432549,-150.0,0.00010059,2]
[360935478,1747157432558,-150.0,0.00010076,2]
[360935479,1747157432570,-150.0,0.00010094,2]
[360935480,1747157432579,-1500.0,0.000101,3]
[360935481,1747157432588,-150.0,0.00010111,2]
[360935482,1747157432598,-150.0,0.00010128,2]
[360935483,1747157432607,-1367.70521093,0.00010136,2]
[360935484,1747157432616,-150.0,0.00010145,2]
[360935485,1747157432625,-150.0,0.00010162,2]
[360935486,1747157432634,-150.0,0.00010179,2]
[360935487,1747157432643,-150.0,0.00010197,2]
[360935488,1747157432653,-211.88,0.00010198,2]
[360935489,1747157432662,-2300.0,0.000102,3]
[360935490,1747157432671,-150.0,0.00010214,2]
[360935492,1747157432681,-150.0,0.00010231,2]
[360935494,1747157432690,-164.79,0.00010245,2]
[360935496,1747157432700,-150.0,0.00010248,2]
[360935498,1747157432710,-150.0,0.00010265,2]
[360935500,1747157432719,-150.0,0.00010282,2]
[360935501,1747157432728,-150.0,0.000103,2]
[360935503,1747157432737,-3100.0,0.000103,3]
[360935504,1747157432746,-150.0,0.00010317,2]
[360935505,1747157432755,-150.0,0.00010334,2]
[360935506,1747157432764,-150.0,0.00010351,2]
[360935507,1747157432773,-150.0,0.00010368,2]
[360935508,1747157432782,-207.4,0.00010382,2]
[360935509,1747157432791,-287.61899177,0.00010382,2]
[360935510,1747157432801,-668.65185757,0.00010382,2]
[360935511,1747157432810,-151.0,0.00010382,2]
[360935512,1747157432822,-150.0,0.00010385,2]
[360935513,1747157432831,-3900.0,0.000104,3]
[360935514,1747157432840,-150.0,0.00010403,2]
[360935515,1747157432850,-150.0,0.0001042,2]
[360935516,1747157432859,-150.0,0.00010437,2]
[360935517,1747157432868,-171.2680879,0.00010438,2]
[360935518,1747157432877,-150.0,0.00010454,2]
[360935519,1747157432886,-150.0,0.00010471,2]
[360935520,1747157432896,-1000.0,0.00010472,2]
[360935521,1747157432905,-1608.02,0.00010475,2]
[360935522,1747157432914,-150.0,0.00010488,2]
[360935523,1747157432923,-700.0,0.000105,3]
[360935524,1747157432932,-150.0,0.00010506,2]
[360935525,1747157432942,-150.0,0.00010523,2]
[360935526,1747157432951,-1463.12,0.00010533,2]
[360935527,1747157432960,-150.0,0.0001054,2]
[360935528,1747157432969,-404.69497242,0.00010548,2]
[360935529,1747157432978,-171.2680879,0.00010548,2]
[360935530,1747157432987,-150.0,0.00010557,2]
[360935531,1747157432997,-150.0,0.00010574,2]
[360935532,1747157433006,-150.0,0.00010591,2]
[360935533,1747157433015,-700.0,0.000106,3]
[360935534,1747157433024,-150.0,0.00010609,2]
[360935535,1747157433033,-150.0,0.00010626,2]
[360935536,1747157433043,-171.2680879,0.0001063,2]
[360935537,1747157433052,-150.0,0.00010643,2]
[360935538,1747157433061,-150.0,0.0001066,2]
[360935539,1747157433071,-150.0,0.00010677,2]
[360935540,1747157433082,-150.0,0.00010694,2]
[360935541,1747157433091,-700.0,0.000107,3]
[360935542,1747157433100,-150.0,0.00010712,2]
[360935543,1747157433110,-150.0,0.00010729,2]
[360935544,1747157433119,-171.2680879,0.0001074,2]
[360935545,1747157433129,-150.0,0.00010746,2]
[360935546,1747157433138,-150.0,0.00010763,2]
[360935547,1747157433148,-150.0,0.0001078,2]
[360935548,1747157433157,-150.0,0.00010797,2]
[360935549,1747157433168,-700.0,0.000108,3]
[360935550,1747157433177,-150.0,0.00010815,2]
[360935551,1747157433187,-171.2680879,0.00010822,2]
[360935552,1747157433197,-150.0,0.00010832,2]
[360935553,1747157433207,-150.0,0.00010839,2]
[360935554,1747157433217,-150.0,0.00010849,2]
[360935555,1747157433227,-2500.0,0.00010858,2]
[360935556,1747157433237,-150.0,0.00010866,2]
[360935557,1747157433248,-150.0,0.00010883,2]
[360935558,1747157433257,-150.0,0.00010893,2]
[360935559,1747157433267,-250.0,0.00010895,2]
[360935560,1747157433277,-147.69284193,0.000109,3]
[360935561,1747157433325,-1252.30715807,0.000109,3]
[360935562,1747157433335,-90.44282536,0.000109,2]
[360935563,1747157433348,-59.55717464,0.000109,2]
[360935564,1747157433358,-171.2680879,0.00010904,2]
[360935565,1747157433368,-150.0,0.00010918,2]
[360935566,1747157433378,-298.26089446,0.0001093,2]
[360935567,1747157433388,-693.3919763,0.0001093,2]
[360935568,1747157433398,-150.0,0.00010935,2]
[360935569,1747157433407,-689.976148,0.00010944,2]
[360935570,1747157433419,-150.0,0.00010948,2]
[360935571,1747157433429,-150.0,0.00010952,2]
[360935572,1747157433439,-400.0,0.00010958,2]
[360935573,1747157433449,-400.0,0.00010958,2]
[360935574,1747157433459,-1075.77,0.00010958,2]
[360935575,1747157433469,-400.0,0.00010958,2]
[360935576,1747157433479,-400.0,0.00010958,2]
[360935577,1747157433489,-463.68,0.00010958,2]
[360935578,1747157433499,-400.0,0.00010958,2]
[360935579,1747157433509,-400.0,0.00010958,2]
[360935580,1747157433518,-400.0,0.00010958,2]
[360935581,1747157433528,-323.1607187,0.00010958,2]
[360935585,1747157438170,-76.8392813,0.00010958,2]
[360935587,1747157438180,-400.0,0.00010958,2]
[360935589,1747157438190,-87.20098695,0.00010958,2]
[360935598,1747157438333,-312.79901305,0.00010958,2]
[360935599,1747157438343,-94.20098695,0.00010958,2]
[360935610,1747157440479,-305.79901305,0.00010958,2]
[360935611,1747157440489,-400.0,0.00010958,2]
[360935612,1747157440498,-741.9583737,0.00010958,2]
[360935613,1747157440524,-261.29,0.00010958,2]
[360935614,1747157440556,-122.9416263,0.00010958,2]
[360935615,1747157440565,-377.0583737,0.00010958,2]
[360935616,1747157440614,-22.9416263,0.00010958,2]
[360935617,1747157440623,-494.34491032,0.00010958,2]
[360935618,1747157440632,-444.68,0.00010958,2]
[360935619,1747157440641,-400.0,0.00010958,2]
[360935620,1747157440652,-828.95,0.00010958,2]
[360935621,1747157440661,-400.0,0.00010958,2]
[360935622,1747157440671,-400.0,0.00010958,2]
[360935623,1747157440680,-400.0,0.00010958,2]
[360935624,1747157440689,-400.0,0.00010958,2]
[360935625,1747157440699,-440.22,0.00010958,2]
[360935626,1747157440709,-400.0,0.00010958,2]
[360935627,1747157440718,-642.02,0.00010958,2]
[360935628,1747157440727,-567.53,0.00010958,2]
[360935629,1747157440736,-439.1,0.00010958,2]
[360935630,1747157440745,-400.0,0.00010958,2]
[360935631,1747157440755,-400.0,0.00010958,2]
[360935632,1747157440765,-400.0,0.00010958,2]
[360935633,1747157440774,-400.0,0.00010958,2]
[360935634,1747157440784,-711.85,0.00010958,2]
[360935635,1747157440795,-400.0,0.00010958,2]
[360935636,1747157440804,-400.0,0.00010958,2]
[360935637,1747157440814,-400.0,0.00010958,2]
[360935638,1747157440825,-1868.41,0.00010958,2]
[360935639,1747157440834,-1268.03,0.00010958,2]
[360935640,1747157440843,-400.0,0.00010958,2]
[360935641,1747157440853,-400.0,0.00010958,2]
[360935642,1747157440862,-400.0,0.00010958,2]